lending/lending_fUSD_20250706
["ID","MTS","AMOUNT","RATE_DAILY","PERIOD"]
[369996192,1751817050731,-582.02,0.00019178,2]
[369996193,1751817050741,-460.0,0.00019178,2]
[369996194,1751817050753,-460.0,0.00019178,2]
[369996195,1751817050764,-460.0,0.00019178,2]
[369996196,1751817050774,-256.50309287,0.00019178,2]
[369996197,1751817050784,-571.17,0.00019178,2]
[369996198,1751817050795,-1215.91,0.00019178,2]
[369996199,1751817050806,-663.45,0.00019178,2]
[369996200,1751817050816,-799.98,0.00019178,2]
[369996201,1751817050826,-460.0,0.00019178,2]
[369996202,1751817050836,-460.0,0.00019178,2]
[369996203,1751817050845,-460.0,0.00019178,2]
[369996204,1751817050855,-2499.03,0.00019178,2]
[369996205,1751817050865,-460.0,0.00019178,2]
[369996206,1751817050875,-460.0,0.00019178,2]
[369996207,1751817050884,-460.0,0.00019178,2]
[369996208,1751817050956,-460.0,0.00019178,2]
[369996209,1751817050966,-554.83690679,0.00019178,2]
[369996210,1751817050975,-525.51,0.00019178,2]
[369996211,1751817050985,-460.0,0.00019178,2]
[369996212,1751817050995,-460.0,0.00019178,2]
[369996213,1751817051004,-460.0,0.00019178,2]
[369996214,1751817051014,-460.0,0.00019178,2]
[369996215,1751817051024,-498.4,0.00019178,2]
[369996216,1751817051033,-2980.59,0.00019178,2]
[369996217,1751817051042,-460.0,0.00019178,2]
[369996218,1751817051052,-460.0,0.00019178,2]
[369996219,1751817051061,-460.0,0.00019178,2]
[369996220,1751817051071,-431.16836162,0.00019178,2]
[369996221,1751817051080,-1239.68,0.00019178,2]
[369996222,1751817051089,-460.0,0.00019178,2]
[369996223,1751817051099,-460.0,0.00019178,2]
[369996224,1751817051108,-460.0,0.00019178,2]
[369996225,1751817051117,-460.0,0.00019178,2]
[369996226,1751817051126,-956.64,0.00019178,2]
[369996227,1751817051135,-460.0,0.00019178,2]
[369996228,1751817051144,-9955.11,0.00019178,2]
[369996229,1751817051153,-460.0,0.00019178,2]
[369996230,1751817051162,-252.07014499,0.00019178,2]
[369996231,1751817051172,-460.0,0.00019178,2]
[369996232,1751817051181,-460.0,0.00019178,2]
[369996233,1751817051191,-151.0,0.00019178,2]
[369996234,1751817051200,-191.090246,0.00019178,2]
[369996235,1751817051210,-706.05,0.00019178,2]
[369996236,1751817051219,-460.0,0.00019178,2]
[369996237,1751817051228,-460.0,0.00019178,2]
[369996238,1751817051239,-460.0,0.00019178,2]
[369996239,1751817051251,-3013.54,0.00019178,2]
[369996240,1751817051261,-460.0,0.00019178,2]
[369996241,1751817051270,-460.0,0.00019178,2]
[369996242,1751817051279,-671.78,0.00019178,2]
[369996243,1751817051288,-1092.19,0.00019178,2]
[369996244,1751817051298,-460.0,0.00019178,2]
[369996245,1751817051309,-460.0,0.00019178,2]
[369996246,1751817051318,-1770.54,0.00019178,2]
[369996247,1751817051327,-460.0,0.00019178,2]
[369996248,1751817051338,-460.0,0.00019178,2]
[369996249,1751817051349,-2477.38,0.00019178,2]
[369996250,1751817051358,-460.0,0.00019178,2]
[369996251,1751817051367,-460.0,0.00019178,2]
[369996252,1751817051376,-547.81,0.00019178,2]
[369996253,1751817051385,-500.0,0.00019178,2]
[369996254,1751817051394,-151.858575,0.00019178,2]
[369996255,1751817051403,-500.0,0.00019178,2]
[369996256,1751817051413,-493.45409621,0.00019178,2]
[369996257,1751817051422,-460.0,0.00019178,2]
[369996258,1751817051432,-2204.47,0.00019178,2]
[369996259,1751817051441,-500.0,0.00019178,2]
[369996260,1751817051451,-460.0,0.00019178,2]
[369996261,1751817051459,-500.0,0.00019178,2]
[369996262,1751817051468,-460.0,0.00019178,2]
[369996263,1751817051477,-860.22,0.00019178,2]
[369996264,1751817051487,-490.0,0.00019178,2]
[369996265,1751817051496,-460.0,0.00019178,2]
[369996266,1751817051506,-783.12,0.00019178,2]
[369996267,1751817051515,-853.19,0.00019178,2]
[369996268,1751817051524,-460.0,0.00019178,2]
[369996269,1751817051533,-460.0,0.00019178,2]
[369996270,1751817051542,-460.0,0.00019178,2]
[369996271,1751817051551,-460.0,0.00019178,2]
[369996272,1751817051560,-460.0,0.00019178,2]
[369996273,1751817051569,-460.0,0.00019178,2]
[369996274,1751817051579,-460.0,0.00019178,2]
[369996275,1751817051588,-1326.72,0.00019178,2]
[369996276,1751817051597,-460.0,0.00019178,2]
[369996277,1751817051607,-460.0,0.00019178,2]
[369996278,1751817051616,-460.0,0.00019178,2]
[369996279,1751817051626,-460.0,0.00019178,2]
[369996280,1751817051635,-537.77512908,0.00019178,2]
[369996281,1751817051644,-460.0,0.00019178,2]
[369996282,1751817051653,-246.90536423,0.00019178,2]
[369996283,1751817051663,-518.46292956,0.00019178,2]
[369996284,1751817051672,-460.0,0.00019178,2]
[369996285,1751817051681,-460.0,0.00019178,2]
[369996286,1751817051692,-460.0,0.00019178,2]
[369996287,1751817051701,-460.0,0.00019178,2]
[369996288,1751817051710,-1235.98,0.00019178,2]
[369996289,1751817051719,-460.0,0.00019178,2]
[369996290,1751817051728,-817.21,0.00019178,2]
[369996291,1751817051738,-460.0,0.00019178,2]
[369996292,1751817051747,-460.0,0.00019178,2]
[369996293,1751817051757,-151.0,0.00019178,2]
[369996294,1751817051767,-170.67,0.00019178,2]
[369996295,1751817051778,-153.992153,0.00019178,2]
[369996296,1751817051788,-543.23082246,0.00019181,2]
[369996297,1751817051798,-543.23082246,0.00019241,2]
[369996298,1751817051808,-500.0,0.00019256,2]
[369996299,1751817051818,-420.0,0.00019283,2]
[369996300,1751817051827,-543.23082246,0.00019301,2]
[369996301,1751817051838,-168.0,0.00019343,2]
[369996302,1751817051847,-255.60385818,0.00019352,2]
[369996303,1751817051855,-543.23082246,0.0001936,2]
[369996304,1751817051864,-500.0,0.00019379,2]
[369996305,1751817051873,-500.0,0.00019379,2]
[369996306,1751817051883,-500.0,0.00019379,2]
[369996307,1751817051892,-500.0,0.00019379,2]
[369996308,1751817051902,-500.0,0.00019379,2]
[369996309,1751817051912,-500.0,0.00019379,2]
[369996310,1751817051923,-500.0,0.00019379,2]
[369996311,1751817051933,-500.0,0.00019379,2]
[369996312,1751817051943,-500.0,0.00019379,2]
[369996313,1751817051953,-500.0,0.00019379,2]
[369996314,1751817051962,-500.0,0.00019379,2]
[369996315,1751817051971,-500.0,0.00019379,2]
[369996316,1751817051980,-500.0,0.00019379,2]
[369996317,1751817051990,-500.0,0.00019379,2]
[369996318,1751817052000,-500.0,0.00019379,2]
[369996319,1751817052009,-500.0,0.00019379,2]
[369996320,1751817052019,-500.0,0.00019379,2]
[369996321,1751817052028,-500.0,0.00019379,2]
[369996322,1751817052037,-500.0,0.00019379,2]
[369996323,1751817052046,-500.0,0.00019379,2]
[369996324,1751817052056,-500.0,0.00019379,2]
[369996325,1751817052065,-500.0,0.00019379,2]
[369996326,1751817052074,-500.0,0.00019379,2]
[369996327,1751817052083,-500.0,0.00019379,2]
[369996328,1751817052093,-500.0,0.00019379,2]
[369996329,1751817052103,-500.0,0.00019379,2]
[369996330,1751817052112,-500.0,0.00019379,2]
[369996331,1751817052121,-500.0,0.00019379,2]
[369996332,1751817052132,-500.0,0.00019379,2]
[369996333,1751817052142,-500.0,0.00019379,2]
[369996334,1751817052153,-500.0,0.00019379,2]
[369996335,1751817052162,-500.0,0.00019379,2]
[369996336,1751817052172,-746.0,0.00019379,2]
[369996337,1751817052181,-2532.33276781,0.0001939,2]
[369996338,1751817052191,-163.779,0.00019404,2]
[369996339,1751817052200,-1287.339,0.00019404,2]
[369996340,1751817052210,-151.0,0.00019405,2]
[369996341,1751817052219,-543.23082246,0.0001942,2]
[369996342,1751817052228,-3087.08,0.0001943,2]
[369996343,1751817052238,-500.0,0.00019451,2]
[369996344,1751817052247,-500.0,0.00019451,2]
[369996345,1751817052256,-500.0,0.00019451,2]
[369996346,1751817052265,-257.94152631,0.00019451,2]
[369996347,1751817052275,-420.63854372,0.00019451,2]
[369996348,1751817052284,-626.85,0.00019451,2]
[369996349,1751817052294,-626.85,0.00019451,2]
[369996350,1751817052303,-500.0,0.00019451,2]
[369996351,1751817052313,-150.0,0.00019451,2]
[369996352,1751817052322,-500.0,0.00019451,2]
[369996353,1751817052331,-500.0,0.00019451,2]
[369996354,1751817052344,-500.0,0.00019451,2]
[369996355,1751817052353,-300.0,0.00019451,2]
[369996356,1751817052362,-2379.0,0.00019452,2]
[369996357,1751817052373,-232.077409,0.00019452,2]
[369996358,1751817052383,-459.6467,0.00019452,2]
[369996359,1751817052392,-368.57731,0.00019452,2]
[369996360,1751817052401,-835.478674,0.00019452,2]
[369996361,1751817052411,-563.40801372,0.00019452,2]
[369996362,1751817052420,-151.0,0.00019452,2]
[369996363,1751817052430,-213.17699,0.00019452,2]
[369996364,1751817052439,-460.0,0.00019452,2]
[369996365,1751817052448,-460.0,0.00019452,2]
[369996366,1751817052457,-460.0,0.00019452,2]
[369996367,1751817052466,-460.0,0.00019452,2]
[369996368,1751817052475,-460.0,0.00019452,2]
[369996369,1751817052485,-151.0,0.00019452,2]
[369996370,1751817052495,-151.0,0.00019452,2]
[369996371,1751817052504,-151.0,0.00019452,2]
[369996372,1751817052514,-151.0,0.00019452,2]
[369996373,1751817052523,-460.0,0.00019452,2]
[369996374,1751817052532,-460.0,0.00019452,2]
[369996375,1751817052542,-460.0,0.00019452,2]
[369996376,1751817052551,-600.45,0.00019452,2]
[369996377,1751817052560,-460.0,0.00019452,2]
[369996378,1751817052570,-460.0,0.00019452,2]
[369996379,1751817052579,-460.0,0.00019452,2]
[369996380,1751817052588,-460.0,0.00019452,2]
[369996381,1751817052598,-460.0,0.00019452,2]
[369996382,1751817052608,-519.31,0.00019452,2]
[369996383,1751817052617,-460.0,0.00019452,2]
[369996384,1751817052627,-460.0,0.00019452,2]
[369996385,1751817052636,-460.0,0.00019452,2]
[369996386,1751817052645,-460.0,0.00019452,2]
[369996387,1751817052655,-460.0,0.00019452,2]
[369996388,1751817052664,-599.88255917,0.00019452,2]
[369996389,1751817052673,-460.0,0.00019452,2]
[369996390,1751817052683,-460.0,0.00019452,2]
[369996391,1751817052692,-460.0,0.00019452,2]
[369996392,1751817052701,-460.0,0.00019452,2]
[369996393,1751817052710,-530.47064839,0.00019452,2]
[369996394,1751817052720,-460.0,0.00019452,2]
[369996395,1751817052731,-460.0,0.00019452,2]
[369996396,1751817052741,-460.0,0.00019452,2]
[369996397,1751817052750,-270.62891956,0.00019452,2]
[369996398,1751817052759,-460.0,0.00019452,2]
[369996399,1751817052769,-460.0,0.00019452,2]
[369996400,1751817052779,-460.0,0.00019452,2]
[369996401,1751817052788,-460.0,0.00019452,2]
[369996402,1751817052798,-460.0,0.00019452,2]
[369996403,1751817052809,-460.0,0.00019452,2]
[369996404,1751817052818,-460.0,0.00019452,2]
[369996405,1751817052828,-460.0,0.00019452,2]
[369996406,1751817052838,-460.0,0.00019452,2]
[369996407,1751817052847,-460.0,0.00019452,2]
[369996408,1751817052855,-460.0,0.00019452,2]
[369996409,1751817052863,-460.0,0.00019452,2]
[369996410,1751817052872,-460.0,0.00019452,2]
[369996411,1751817052882,-460.0,0.00019452,2]
[369996412,1751817052891,-460.0,0.00019452,2]
[369996413,1751817052901,-460.0,0.00019452,2]
[369996414,1751817052912,-478.40244142,0.00019452,2]
[369996415,1751817052923,-460.0,0.00019452,2]
[369996416,1751817052932,-460.0,0.00019452,2]
[369996417,1751817052942,-460.0,0.00019452,2]
[369996418,1751817052952,-460.0,0.00019452,2]
[369996419,1751817052962,-460.0,0.00019452,2]
[369996420,1751817052972,-460.0,0.00019452,2]
[369996421,1751817052982,-460.0,0.00019452,2]
[369996422,1751817052993,-475.73092197,0.00019452,2]
[369996423,1751817053002,-460.0,0.00019452,2]
[369996424,1751817053012,-467.76708198,0.00019452,2]
[369996425,1751817053021,-460.0,0.00019452,2]
[369996426,1751817053032,-470.98734298,0.00019452,2]
[369996427,1751817053043,-460.0,0.00019452,2]
[369996428,1751817053053,-654.52,0.00019452,2]
[369996429,1751817053062,-460.0,0.00019452,2]
[369996430,1751817053071,-460.0,0.00019452,2]
[369996431,1751817053081,-151.0,0.00019452,2]
[369996432,1751817053090,-185.632556,0.00019452,2]
[369996433,1751817053102,-460.0,0.00019452,2]
[369996434,1751817053111,-463.7605333,0.00019452,2]
[369996435,1751817053120,-460.0,0.00019452,2]
[369996436,1751817053130,-469.93536893,0.00019452,2]
[369996437,1751817053139,-460.0,0.00019452,2]
[369996438,1751817053148,-152.29,0.00019452,2]
[369996439,1751817053157,-543.04,0.00019452,2]
[369996440,1751817053167,-460.0,0.00019452,2]
[369996441,1751817053176,-460.0,0.00019452,2]
[369996442,1751817053186,-460.0,0.00019452,2]
[369996443,1751817053195,-573.58,0.00019452,2]
[369996444,1751817053205,-460.0,0.00019452,2]
[369996445,1751817053215,-460.0,0.00019452,2]
[369996446,1751817053224,-460.0,0.00019452,2]
[369996447,1751817053233,-460.0,0.00019452,2]
[369996448,1751817053244,-594.98259873,0.00019452,2]
[369996449,1751817053253,-504.89514937,0.00019452,2]
[369996450,1751817053263,-477.62,0.00019452,2]
[369996451,1751817053272,-460.0,0.00019452,2]
[369996452,1751817053282,-460.0,0.00019452,2]
[369996453,1751817053291,-860.69,0.00019452,2]
[369996454,1751817053300,-460.0,0.00019452,2]
[369996455,1751817053310,-606.86,0.00019452,2]
[369996456,1751817053319,-460.0,0.00019452,2]
[369996457,1751817053329,-460.0,0.00019452,2]
[369996458,1751817053341,-460.0,0.00019452,2]
[369996459,1751817053351,-484.22,0.00019452,2]
[369996460,1751817053360,-460.0,0.00019452,2]
[369996461,1751817053370,-460.0,0.00019452,2]
[369996462,1751817053379,-460.0,0.00019452,2]
[369996463,1751817053389,-460.0,0.00019452,2]
[369996464,1751817053398,-460.0,0.00019452,2]
[369996465,1751817053407,-460.0,0.00019452,2]
[369996466,1751817053417,-460.0,0.00019452,2]
[369996467,1751817053427,-460.0,0.00019452,2]
[369996468,1751817053436,-460.0,0.00019452,2]
[369996469,1751817053445,-460.0,0.00019452,2]
[369996470,1751817053455,-700.28,0.00019452,2]
[369996471,1751817053464,-460.0,0.00019452,2]
[369996472,1751817053474,-501.2,0.00019452,2]
[369996473,1751817053484,-675.77,0.00019452,2]
[369996474,1751817053495,-617.59,0.00019452,2]
[369996475,1751817053504,-460.0,0.00019452,2]
[369996476,1751817053513,-470.1793498,0.00019452,2]
[369996477,1751817053522,-460.0,0.00019452,2]
[369996478,1751817053532,-460.0,0.00019452,2]
[369996479,1751817053541,-460.0,0.00019452,2]
[369996480,1751817053551,-754.15,0.00019452,2]
[369996481,1751817053570,-460.0,0.00019452,2]
[369996482,1751817053581,-460.0,0.00019452,2]
[369996483,1751817053591,-460.0,0.00019452,2]
[369996484,1751817053601,-460.0,0.00019452,2]
[369996485,1751817053610,-532.8,0.00019452,2]
[369996486,1751817053619,-460.0,0.00019452,2]
[369996487,1751817053628,-568.02,0.00019452,2]
[369996488,1751817053638,-618.21,0.00019452,2]
[369996489,1751817053647,-460.0,0.00019452,2]
[369996490,1751817053656,-460.0,0.00019452,2]
[369996491,1751817053666,-530.26,0.00019452,2]
[369996492,1751817053675,-460.0,0.00019452,2]
[369996493,1751817053684,-784.26,0.00019452,2]
[369996494,1751817053694,-460.0,0.00019452,2]
[369996495,1751817053703,-460.0,0.00019452,2]
[369996496,1751817053712,-460.0,0.00019452,2]
[369996497,1751817053721,-1375.75,0.00019452,2]
[369996498,1751817053731,-460.0,0.00019452,2]
[369996499,1751817053740,-489.7,0.00019452,2]
[369996500,1751817053750,-697.84,0.00019452,2]
[369996501,1751817053759,-460.0,0.00019452,2]
[369996502,1751817053769,-460.0,0.00019452,2]
[369996503,1751817053778,-572.53781748,0.00019452,2]
[369996504,1751817053788,-658.19,0.00019452,2]
[369996505,1751817053797,-264.457186,0.00019452,2]
[369996506,1751817053807,-1908.410171,0.00019452,2]
[369996507,1751817053816,-1083.4,0.00019452,2]
[369996508,1751817053825,-460.0,0.00019452,2]
[369996509,1751817053834,-551.72,0.00019452,2]
[369996510,1751817053844,-460.0,0.00019452,2]
[369996511,1751817053853,-460.0,0.00019452,2]
[369996512,1751817053862,-760.97,0.00019452,2]
[369996513,1751817053871,-460.0,0.00019452,2]
[369996514,1751817053881,-258.78172848,0.00019452,2]
[369996515,1751817053890,-486.03,0.00019452,2]
[369996516,1751817053899,-460.0,0.00019452,2]
[369996517,1751817053908,-469.77603168,0.00019452,2]
[369996518,1751817053918,-460.0,0.00019452,2]
[369996519,1751817053927,-460.0,0.00019452,2]
[369996520,1751817053937,-460.0,0.00019452,2]
[369996521,1751817053946,-639.91,0.00019452,2]
[369996522,1751817053955,-728.93,0.00019452,2]
[369996523,1751817053965,-935.94,0.00019452,2]
[369996524,1751817053975,-460.0,0.00019452,2]
[369996525,1751817053985,-725.15,0.00019452,2]
[369996526,1751817053997,-460.0,0.00019452,2]
[369996527,1751817054007,-474.71,0.00019452,2]
[369996528,1751817054016,-460.0,0.00019452,2]
[369996529,1751817054026,-460.0,0.00019452,2]
[369996530,1751817054036,-460.0,0.00019452,2]
[369996531,1751817054047,-460.0,0.00019452,2]
[369996532,1751817054057,-460.0,0.00019452,2]
[369996533,1751817054068,-460.0,0.00019452,2]
[369996534,1751817054078,-460.0,0.00019452,2]
[369996535,1751817054087,-460.0,0.00019452,2]
[369996536,1751817054097,-1017.16,0.00019452,2]
[369996537,1751817054107,-460.0,0.00019452,2]
[369996538,1751817054117,-709.01,0.00019452,2]
[369996539,1751817054126,-460.0,0.00019452,2]
[369996540,1751817054136,-460.0,0.00019452,2]
[369996541,1751817054145,-183.815877,0.00019452,2]
[369996542,1751817054155,-460.0,0.00019452,2]
[369996543,1751817054165,-797.49,0.00019452,2]
[369996544,1751817054174,-183.815877,0.00019452,2]
[369996545,1751817054184,-183.815877,0.00019452,2]
[369996546,1751817054193,-183.815877,0.00019452,2]
[369996547,1751817054203,-183.815877,0.00019452,2]
[369996548,1751817054213,-460.0,0.00019452,2]
[369996549,1751817054223,-183.815877,0.00019452,2]
[369996550,1751817054233,-183.815877,0.00019452,2]
[369996551,1751817054242,-183.815877,0.00019452,2]
[369996552,1751817054252,-183.815877,0.00019452,2]
[369996553,1751817054262,-183.815877,0.00019452,2]
[369996554,1751817054272,-532.95,0.00019452,2]
[369996555,1751817054281,-484.11,0.00019452,2]
[369996556,1751817054291,-647.94,0.00019452,2]
[369996557,1751817054301,-460.0,0.00019452,2]
[369996558,1751817054311,-460.0,0.00019452,2]
[369996559,1751817054320,-548.22,0.00019452,2]
[369996560,1751817054329,-460.0,0.00019452,2]
[369996561,1751817054340,-460.0,0.00019452,2]
[369996562,1751817054355,-460.0,0.00019452,2]
[369996563,1751817054364,-615.53,0.00019452,2]
[369996564,1751817054374,-460.0,0.00019452,2]
[369996565,1751817054384,-460.0,0.00019452,2]
[369996566,1751817054395,-460.0,0.00019452,2]
[369996567,1751817054404,-460.0,0.00019452,2]
[369996568,1751817054414,-460.0,0.00019452,2]
[369996569,1751817054424,-765.03,0.00019452,2]
[369996570,1751817054433,-460.0,0.00019452,2]
[369996571,1751817054443,-460.0,0.00019452,2]
[369996572,1751817054453,-967.09,0.00019452,2]
[369996573,1751817054463,-460.0,0.00019452,2]
[369996574,1751817054473,-1099.12,0.00019452,2]
[369996575,1751817054483,-460.0,0.00019452,2]
[369996576,1751817054495,-460.0,0.00019452,2]
[369996577,1751817054504,-460.0,0.00019452,2]
[369996578,1751817054514,-460.0,0.00019452,2]
[369996579,1751817054524,-460.0,0.00019452,2]
[369996580,1751817054534,-460.0,0.00019452,2]
[369996581,1751817054544,-151.0,0.00019452,2]
[369996582,1751817054554,-151.0,0.00019452,2]
[369996583,1751817054564,-151.0,0.00019452,2]
[369996584,1751817054574,-151.0,0.00019452,2]
[369996585,1751817054584,-151.0,0.00019452,2]
[369996586,1751817054594,-628.54,0.00019452,2]
[369996587,1751817054604,-460.0,0.00019452,2]
[369996588,1751817054614,-460.0,0.00019452,2]
[369996589,1751817054624,-460.0,0.00019452,2]
[369996590,1751817054634,-465.85433116,0.00019452,2]
[369996591,1751817054644,-460.0,0.00019452,2]
[369996592,1751817054654,-652.31,0.00019452,2]
[369996593,1751817054664,-1048.27,0.00019452,2]
[369996594,1751817054674,-460.0,0.00019452,2]
[369996595,1751817054684,-460.0,0.00019452,2]
[369996596,1751817054694,-583.18,0.00019452,2]
[369996597,1751817054704,-460.0,0.00019452,2]
[369996598,1751817054714,-460.0,0.00019452,2]
[369996599,1751817054724,-676.26,0.00019452,2]
[369996600,1751817054735,-334.64914159,0.00019452,2]
[369996601,1751817054745,-3025.69,0.00019452,2]
[369996602,1751817054755,-460.0,0.00019452,2]
[369996603,1751817054765,-486.11,0.00019452,2]
[369996604,1751817054775,-709.72,0.00019452,2]
[369996605,1751817054785,-460.0,0.00019452,2]
[369996606,1751817054795,-564.05,0.00019452,2]
[369996607,1751817054806,-460.0,0.00019452,2]
[369996608,1751817054816,-460.0,0.00019452,2]
[369996609,1751817054826,-460.0,0.00019452,2]
[369996610,1751817054836,-460.0,0.00019452,2]
[369996611,1751817054846,-460.0,0.00019452,2]
[369996612,1751817054856,-460.0,0.00019452,2]
[369996613,1751817054867,-460.0,0.00019452,2]
[369996614,1751817054878,-472.76862461,0.00019452,2]
[369996615,1751817054888,-460.0,0.00019452,2]
[369996616,1751817054898,-88.0677847,0.00019452,2]
[369996617,1751817054949,-371.9322153,0.00019452,2]
[369996618,1751817054959,-235.50562894,0.00019452,2]
[369996619,1751817056993,-159.58893409,0.00019178,2]
[369996620,1751817057002,-460.0,0.00019178,2]
[369996621,1751817057013,-460.0,0.00019178,2]
[369996622,1751817057022,-460.0,0.00019178,2]
[369996623,1751817057031,-460.0,0.00019178,2]
[369996624,1751817057041,-460.0,0.00019178,2]
[369996625,1751817057050,-460.0,0.00019178,2]
[369996626,1751817057060,-460.0,0.00019178,2]
[369996627,1751817057069,-460.0,0.00019178,2]
[369996628,1751817057079,-224.49437106,0.00019452,2]
[369996629,1751817057088,-460.0,0.00019452,2]
[369996630,1751817057097,-460.0,0.00019452,2]
[369996631,1751817057107,-460.0,0.00019452,2]
[369996632,1751817057117,-788.28,0.00019452,2]
[369996633,1751817057126,-460.0,0.00019452,2]
[369996634,1751817057135,-460.0,0.00019452,2]
[369996635,1751817057145,-467.57,0.00019452,2]
[369996636,1751817057154,-525.20293356,0.00019452,2]
[369996637,1751817057164,-460.0,0.00019452,2]
[369996638,1751817057173,-460.0,0.00019452,2]
[369996639,1751817057183,-703.09,0.00019452,2]
[369996640,1751817057193,-549.26,0.00019452,2]
[369996641,1751817057202,-460.0,0.00019452,2]
[369996642,1751817057212,-460.0,0.00019452,2]
[369996643,1751817057221,-460.0,0.00019452,2]
[369996644,1751817057234,-460.0,0.00019452,2]
[369996645,1751817057243,-460.0,0.00019452,2]
[369996646,1751817057254,-460.0,0.00019452,2]
[369996647,1751817057265,-460.0,0.00019452,2]
[369996648,1751817057274,-460.0,0.00019452,2]
[369996649,1751817057283,-682.69,0.00019452,2]
[369996650,1751817057293,-712.44,0.00019452,2]
[369996651,1751817057302,-460.0,0.00019452,2]
[369996652,1751817057312,-300.0,0.00019452,2]
[369996653,1751817057322,-460.0,0.00019452,2]
[369996654,1751817057332,-1255.014287,0.00019452,2]
[369996655,1751817057345,-460.0,0.00019452,2]
[369996656,1751817057355,-460.0,0.00019452,2]
[369996657,1751817057365,-1914.808636,0.00019452,2]
[369996658,1751817057374,-566.91,0.00019452,2]
[369996659,1751817057385,-155.63706286,0.00019452,2]
[369996660,1751817057395,-460.0,0.00019452,2]
[369996661,1751817057404,-683.18,0.00019452,2]
[369996662,1751817057414,-460.0,0.00019452,2]
[369996663,1751817057425,-460.0,0.00019452,2]
[369996664,1751817057435,-460.0,0.00019452,2]
[369996665,1751817057444,-842.92,0.00019452,2]
[369996666,1751817057454,-460.0,0.00019452,2]
[369996667,1751817057463,-956.31,0.00019452,2]
[369996668,1751817057473,-460.0,0.00019452,2]
[369996669,1751817057482,-478.51,0.00019452,2]
[369996670,1751817057492,-814.8,0.00019452,2]
[369996671,1751817057503,-460.0,0.00019452,2]
[369996672,1751817057512,-151.0,0.00019452,2]
[369996673,1751817057521,-200.10204,0.00019452,2]
[369996674,1751817057531,-460.0,0.00019452,2]
[369996675,1751817057540,-460.0,0.00019452,2]
[369996676,1751817057549,-460.0,0.00019452,2]
[369996677,1751817057559,-460.0,0.00019452,2]
[369996678,1751817057568,-460.0,0.00019452,2]
[369996679,1751817057577,-542.97,0.00019452,2]
[369996680,1751817057586,-460.0,0.00019452,2]
[369996681,1751817057595,-556.67,0.00019452,2]
[369996682,1751817057605,-460.0,0.00019452,2]
[369996683,1751817057614,-492.81,0.00019452,2]
[369996684,1751817057624,-885.04,0.00019452,2]
[369996685,1751817057633,-460.0,0.00019452,2]
[369996686,1751817057642,-460.0,0.00019452,2]
[369996687,1751817057652,-460.0,0.00019452,2]
[369996688,1751817057661,-491.13,0.00019452,2]
[369996689,1751817057671,-468.25482504,0.00019452,2]
[369996690,1751817057680,-460.0,0.00019452,2]
[369996691,1751817057690,-460.0,0.00019452,2]